Cogmind - Beta 14 *** ADVENTURER MODE // 2024.12.07 @ 07:14:42 Player: Kurgan Result: Destroyed by as-67269 with Assembled Maul Performance ------------- Evolutions (0) 0 Regions Visited (2) 400 Robots Destroyed (5) 25 Value Destroyed (136) 136 Prototype IDs (0) 0 Alien Tech Used (0) 0 Bonus (-62) -62 TOTAL SCORE: 499 Bonus ------- Friendly Fire -62 Cogmind --------- Core Integrity 0/250 Matter 189/300 Energy 340/340 System Corruption 1% Temperature Cool (0) Movement Core (150) Ox2 Location -10/Mines Parts ------- > --- POWER (1) -------- Light Deuterium Engine > --- PROPULSION (2) --- (None) > --- UTILITY (2) ------ Large Battery Sensor Array > --- WEAPON (2) ------- (None) > --- INVENTORY (5) ---- Ion Engine Light Ion Engine Peak State ------------ > --- POWER ------------ Light Deuterium Engine > --- PROPULSION ------- Wheel Wheel > --- UTILITY ---------- Large Battery Sensor Array > --- WEAPON ----------- Small Laser Grenade Launcher > --- INVENTORY -------- Ion Engine Light Ion Engine EM Pulse Gun [Rating: 9] Favorites ----------- Power Ion Engine Engine Ion Engine Propulsion Wheel Treads Light Treads Wheel Wheel Utility Large Battery Device Sensor Array Storage Large Battery Processor Signal Interpreter Protection Light Armor Plating Weapon Small Laser Energy Gun Small Laser Launcher Grenade Launcher Build | -11 -10 -10 ------- Run | Yrd Mat Min Slots Evolved . | . . . Power . | . . . Propulsion . | . . . Utility . | . . . Weapon . | . . . Parts Attached 22 | 6 13 3 Power 2 | 1 . 1 Engine 2 | 1 . 1 Core . | . . . Reactor . | . . . Propulsion 4 | 2 2 . Treads 2 | 2 . . Leg . | . . . Wheel 2 | . 2 . Hover . | . . . Flight . | . . . Utility 12 | 1 10 1 Device 3 | . 2 1 Storage 7 | 1 6 . Processor 1 | . 1 . Hackware . | . . . Protection 1 | . 1 . Artifact . | . . . Weapon 4 | 2 1 1 Energy Gun 3 | 2 . 1 Energy Cannon . | . . . Ballistic Gun . | . . . Ballistic Cannon . | . . . Launcher 1 | . 1 . Special Weapon . | . . . Impact Weapon . | . . . Slashing Weapon . | . . . Piercing Weapon . | . . . Special Melee Weapon . | . . . Unidentified Prototypes . | . . . Parts Lost 6 | . . 6 Power . | . . . Propulsion 2 | . . 2 Utility 1 | . . 1 Weapon 3 | . . 3 Highest Loss Streak 3 | . . 3 To Critical Strikes . | . . . Average Slot Usage (%) 95 | . 97 92 Engine 14 | . 14 14 Treads 7 | . 11 . Wheel 19 | . 16 24 Device 6 | . 5 8 Storage 15 | . 17 14 Processor 1 | . 1 . Protection 2 | . 1 4 Energy Gun 19 | . 22 14 Launcher 7 | . 5 10 Peak Build Rating 9 | 6 7 9 Average Rating 6 | 4 6 7 On Entrance 4 | . 6 7 Naked Turns . | . . . Heaviest Build 50 | 13 50 15 Greatest Support 40 | 40 40 20 Greatest Overweight (x) 5 | . 5 2 Average Overweight (x) . | . . . Largest Inventory Capacity 20 | 8 20 5 Average Capacity 7 | 6 8 5 Most Carried 6 | 5 6 3 Average Carried 2 | 2 2 2 Final Capacity 8 | 8 5 5 Final Carried 3 | 3 3 2 Class Distribution -------------------- 100% | Mutant Dominant Class ---------------- Mutant | -10/Materials Mutant | -10/Mines Resources | -11 -10 -10 ----------- Run | Yrd Mat Min Matter Collected 399 | 234 . 165 Remotely . | . . . Salvage Created 77 | . . 77 Parts 6 | . . 6 Haulers Intercepted . | . . . Recyclers Shooed . | . . . Parts Field Recycled . | . . . Retrieved Matter . | . . . Parts Self-Destructed . | . . . Prevented . | . . . Kills | -11 -10 -10 ------- Run | Yrd Mat Min Combat Hostiles Destroyed 9 | . . 9 Guns 3 | . . 3 AOE 6 | . . 6 Classes Destroyed 3 | . . 3 Swarmer 3 | . . 3 Demolisher 2 | . . 2 Assembled 4 | . . 4 Best Kill Streak 3 | . . 3 Combat Bots Only 3 | . . 3 Max Kills in Single Turn 2 | . . 2 Gunslinging . | . . . Exploded 2 | . . 2 Melee . | . . . Uniques/NPCs Destroyed . | . . . Combat | -11 -10 -10 -------- Run | Yrd Mat Min Hostile Shots Fired 37 | . . 37 Missed 7 | . . 7 Damage Taken 636 | . . 636 Core 254 | . . 254 Absorbed by Shields . | . . . Ignored by Resistances 177 | . . 177 Core Remaining (%) 100 | 100 . . Volleys Fired 23 | . . 23 Largest 2 | . . 2 Hottest 80 | . . 80 Shots Fired 38 | . . 38 Gun 26 | . . 26 Cannon . | . . . Launcher 12 | . . 12 Special . | . . . Kinetic . | . . . Thermal 19 | . . 19 Explosive 12 | . . 12 Electromagnetic 7 | . . 7 Robot Hit Streak 8 | . . 8 Robot Miss Streak 2 | . . 2 Penetration Max . | . . . Secondary Targets 1 | . . 1 Max Gunslinging Chain 1 | . . 1 Shots Hit Robots 28 | . . 28 Core Hits 21 | . . 21 Critical Kills . | . . . Critical Parts Destroyed . | . . . Critical Strikes 1 | . . 1 Corrupt 1 | . . 1 Melee Attacks . | . . . Impact . | . . . Slashing . | . . . Piercing . | . . . Sneak Attacks . | . . . Combat Hostiles . | . . . Follow-up Attacks . | . . . Damage Inflicted 537 | . . 537 Guns 223 | . . 223 Cannons . | . . . Explosions 314 | . . 314 Melee . | . . . Ramming . | . . . Kinetic . | . . . Thermal 168 | . . 168 Explosive 314 | . . 314 Electromagnetic 55 | . . 55 Impact . | . . . Slashing . | . . . Piercing . | . . . Highest Corruption 1 | . . 1 Average Corruption 1 | . . 1 Corruption Purged . | . . . Corruption Blocked . | . . . Effects 2 | . . 2 Heat Flow Errors 1 | . . 1 Energy Discharges 1 | . . 1 Overload Shots . | . . . Overflow Damage 2 | . . 2 Projectiles . | . . . Explosions 2 | . . 2 Melee . | . . . Knockbacks . | . . . Impact . | . . . Kinetic . | . . . Secondary . | . . . Self-Inflicted Damage 110 | . . 110 Shots 4 | . . 4 Rammed . | . . . Targets Rammed . | . . . Kicked . | . . . Crushed . | . . . Highest Temperature 266 | . . 266 Average Temperature 38 | . . 38 Received Heat Transfer 160 | . . 160 Effects 1 | . . 1 Interference 1 | . . 1 Siege Activations . | . . . Robots Corrupted . | . . . Combat Hostiles . | . . . Parts Fried . | . . . Impact Corruptions . | . . . Robots Melted . | . . . Combat Hostiles . | . . . Parts Melted . | . . . Heat Transferred 375 | . . 375 Parts Sabotaged . | . . . Parts Stolen . | . . . Parts Stripped . | . . . Power Chain Reactions . | . . . Alert | -11 -10 -10 ------- Run | Yrd Mat Min Peak Influence 166 | . 45 166 Initial . | . . . Average 48 | . 14 120 Maximum Alert Level . | . . . Low Security (%) 100 | 100 100 100 Level 1 . | . . . Level 2 . | . . . Level 3 . | . . . Level 4 . | . . . Level 5 . | . . . High Security . | . . . Max Security . | . . . Squads Dispatched 1 | . 1 . Investigation 1 | . 1 . Extermination . | . . . Reinforcement . | . . . Assault . | . . . Garrison . | . . . Intercept . | . . . Searches Triggered . | . . . Construction Impeded . | . . . Haulers Reinforced . | . . . Active Scanning Responses . | . . . Cargo Convoy Interrupts . | . . . Stealth | -11 -10 -10 --------- Run | Yrd Mat Min Distress Signals . | . . . Communications Jammed . | . . . Distress Signals . | . . . Times Spotted 20 | . 3 17 Peak Tracking Total 4 | . 2 4 Tactical Retreats 1 | . . 1 Traps | -11 -10 -10 ------- Run | Yrd Mat Min Traps Triggered 2 | . 2 . Indirectly . | . . . Trap Hack Attempts . | . . . Triggered . | . . . Disarmed . | . . . Reprogrammed . | . . . Reused . | . . . Traps Extracted . | . . . Installed . | . . . Triggered . | . . . Machines | -11 -10 -10 ---------- Run | Yrd Mat Min Machines Disabled . | . . . Max in Single Turn . | . . . Machines Repaired . | . . . Machines Dismantled . | . . . Machines Sabotaged . | . . . Overloaded Fab Kills . | . . . Hacking | -11 -10 -10 --------- Run | Yrd Mat Min Machines Accessed 1 | . 1 . Terminals 1 | . 1 . Fabricators . | . . . Repair Stations . | . . . Recycling Units . | . . . Scanalyzers . | . . . Garrison Access . | . . . Total Hacks 1 | . 1 . Successful 1 | . 1 . Failed . | . . . Catastrophic . | . . . Database Lockouts . | . . . Manual . | . . . Terminals 1 | . 1 . Fabricators . | . . . Repair Stations . | . . . Recycling Units . | . . . Scanalyzers . | . . . Garrison Access . | . . . Terminal Hacks 1 | . 1 . Alert Level 1 | . 1 . Fabricator Hacks . | . . . Repair Station Hacks . | . . . Recycling Unit Hacks . | . . . Scanalyzer . | . . . Garrison Access Hacks . | . . . Unauthorized Hacks . | . . . Terminals . | . . . Fabricators . | . . . Repair Stations . | . . . Recycling Units . | . . . Scanalyzers . | . . . Garrison Access . | . . . Data Cores Recovered . | . . . Used . | . . . Hacking Detections . | . . . Full Trace Events . | . . . Feedback Events . | . . . Feedback Blocked . | . . . Robot Schematics Acquired . | . . . Robots Built . | . . . Authchips . | . . . Time . | . . . Total Robot Build Rating . | . . . Part Schematics Acquired . | . . . Parts Built . | . . . Authchips . | . . . Time . | . . . Total Part Build Rating . | . . . Parts Repaired . | . . . Time . | . . . Parts Recycled . | . . . Recycled Matter . | . . . Retrieved Matter . | . . . Retrieved Components . | . . . Parts Scanalyzed . | . . . Part Schematics Acquired . | . . . Parts Damaged . | . . . Bothacking | -11 -10 -10 ------------ Run | Yrd Mat Min Used RIF Installer . | . . . Robots Hacked . | . . . Non-combat . | . . . Combat . | . . . Robot Hacks Applied . | . . . Relay Couplers Released . | . . . Fabnet Peak Effective % . | . . . Robots Rewired . | . . . Allies Hacked . | . . . Hacks Repelled . | . . . Allies | -11 -10 -10 -------- Run | Yrd Mat Min Total Allies 2 | . . 2 Largest Group 2 | . . 2 Highest-Rated Group 39 | . . 39 Highest-Rated Ally 31 | . . 31 Total Orders . | . . . Ally Attacks 16 | . . 16 Total Damage 188 | . . 188 Kills 4 | . . 4 Allies Corrupted 1 | . . 1 Allies Melted . | . . . Intel | -11 -10 -10 ------- Run | Yrd Mat Min Robot Analysis Total . | . . . Derelict Logs Recovered 1 | . . 1 Drone Launches . | . . . Drone Recoveries . | . . . Exploration | -11 -10 -10 ------------- Run | Yrd Mat Min Turns Passed 900 | 125 472 303 Spaces Moved 757 | 78 399 280 Core 19 | 12 2 5 Treads 191 | 66 125 . Legs . | . . . Wheels 547 | . 272 275 Hover . | . . . Flight . | . . . Fastest Speed 50 | 50 80 80 Average Speed 104 | 143 111 83 Slowest Speed 300 | 160 300 150 Overloaded Moves . | . . . Propulsion Burnouts . | . . . Robots Hopped . | . . . Cave-ins Triggered . | . . . Exploration Rate (%) 30 | 5 48 37 Regions Visited 2 Branch Regions 1 Pre-discovered Areas . | . . . Known Exits Taken . | . . . Unknown Exits Taken 2 | 1 1 . Scrap Searched . | . . . Spaces Dug . | . . . Terrain Destroyed 114 | . . 114 Melee . | . . . Projectile . | . . . AOE 114 | . . 114 Terrain Rammed . | . . . Walls Destroyed . | . . . Machines Disabled . | . . . Actions | -11 -10 -10 --------- Run | Yrd Mat Min Total 833 | 91 430 312 Wait 7 | . 2 5 Move 755 | 77 398 280 Hop . | . . . Pick Up 16 | 8 7 1 Fast Attach 1 | 1 . . Attach 18 | 5 11 2 Detach 6 | . 6 . Swap 3 | . 2 1 Drop 4 | . 4 . Fire 23 | . . 23 Melee . | . . . Ram . | . . . Kick . | . . . Crush . | . . . Escape Stasis . | . . . Rewire . | . . . Trap . | . . . Miscellaneous . | . . . Route ------- -11/Scrapyard -10/Materials (discovered 2 exits: [*Mat] / [*Min]) -10/Mines History --------- Turn | Location | Event 38 | -11/Scrapyard | Discovered new exit (range 16) 126 | -11/Scrapyard | Entered Materials 279 | -10/Materials | Discovered new exit (range 16) 300 | -10/Materials | Build established: Mutant 586 | -10/Materials | Discovered new exit (range 13) 598 | -10/Materials | Entered Mines 636 | -10/Mines | Met a Derelict bent on vengeance 642 | -10/Mines | Learned 2 Materials zone layouts 653 | -10/Mines | Assembled infested the area 658 | -10/Mines | Assisted by a Guerilla fighting off Assembled 839 | -10/Mines | Core integrity fell below 50% 888 | -10/Mines | Lost 3 parts (1n2w) 899 | -10/Mines | Core integrity fell below 20% 901 | -10/Mines | Destroyed by as-67269 with Assembled Maul Last Messages --------------- Acquired 49 matter. Acquired 1 matter. Grenade Launcher destroyed. as-45723 destroyed. Wheel destroyed. TC-KHN(g) system corrupted by crushing effect. TC-KHN(g) system terminally corrupted. as-63908 destroyed. Switching to secondary target: as-83810. Sml. Laser destroyed. System corrupted by crushing effect (+1). System corrupted: Heat flow error (+285). Overheating: System interference. Sensor Array temporarily disabled. Acquired 19 matter. Acquired 22 matter. Acquired 14 matter. System corrupted: Energy discharge (-108). EM Pulse Gun destroyed. Wheel destroyed. Map ----- +----------------------------------------------------+ | ??????????????????????????????????????????? | | ??????????????????????????????????????????? | | ??????????????????????????????????????????? | | ???????????????#??????????????????????????? | | ??????????????# ?????????????????????????? | | ??????????????# ?????????????????????????? | | ??????????????# ?????????????????????????? | | ??????????????# ?????????????????????????? | | ??????????????# ?????????????????????????? | | ??????????????# ?????????????????????????? | | ?????????###??# ?????????????????????????? | | ????????## #?# #????????????????????????? | | ???????## ## #????????????????????????? | | ???????# # #????????????????????????? | | ???????# ##???????????????????????? | | ???????# ######??????????????????? | | ????????# ##?????????????????? | | ?????????# #?????????????????? | | ??????????# ## #????????????????? | | ???####???# # ##??? = ?????????????? | | ??## ##??# ??# ##??????"" #??????????? | | ?## #??#????# ##### """ ##??????????? | | ?# ##??????# =!"""??????????????? | | ?# ##?????#a ######=% #????????????? | | ?## #?????# a ##?????????????????????? | | ??# ##?#### @ ####!#????????????????? | | ??# ### < #????????????????? | | ??# ##### #????????????? | | ??## ##???????# #????????????? | | ???##### "#??????????????????????? | | ???????## ##?????????????????????? | | ????????#### #?????????????????????? | | ???????????#### #?????????????????????? | | ??????????????## #?????????????????????? | | ???????????????# ##????? #?????????????? | | ??????????????## #### * #????????????? | | ????????????### % #????????????? | | ???????????## #####=%= #?????????????? | | ???????????# #??????????????????????? | | ???????????# ##????????????????##????? | | ???????????## #####??????????????!#????? | | ????????????## #??# #####?????%#????? | | ?????????##??# # #??# #????#=#????? | | ??###++## #??# #??##### #????# #????? | | ??# #??## ##?????# #????# #????? | | ??# #?#### ##?????# #??### ###??? | | ??# #?# ### ##?????# #??# #??? | | ??# #### ### #?????# #??# #??? | | ??# ## #### ####### #??# = ##### | | ??# ### #??# #??# | +----------------------------------------------------+ Best States ------------- Heat Dissipation 25 Energy Generation 14 Energy Capacity 450 Matter Stores 274 Matter Capacity 300 Sight Range 16 Robot Scan Range 14 Terrain Scan Density 10 Armor Coverage 150 Resistance: KI 20 Resistance: TH 20 Resistance: EX 20 Resistance: EM 20 Resistance: I 20 Resistance: S 20 Resistance: P 20 Evasion (%) 50 Recoil Reduction 2 Offensive Hacking 10 Item Schematics ----------------- None Robot Schematics ------------------ None Fabricated ------------ Nothing Alien Tech Used ----------------- None Achievements -------------- Let's See Who's Tougher Challenges ------------ None Game ------ Seed ShadeFusionSword Manual? 0 Play Time 00:21:07 Cumulative 2.4 hours Start 2024.12.07 @ 06:17:57 End 2024.12.07 @ 07:14:42 Sessions 1 Manual Loads 0 Difficulty Adventurer Special Mode None Game No. 3 Rogue 0 Adventurer 3 Explorer 0 Win Type - Total 0 Types 0/0/0/0/0/0/0/0/0 Lore% 0 Gallery% 6 Achievement% 3 Wizard Run 0 Options --------- Layout 1 ASCII 0 Keyboard 0 Movement Numpad Keybinds 0 Fullscreen 1 Font 32/SmallcapsGlow Map View 77x35 Zoom Use 0% Tactical HUD 0 Map Filters NONE Filters NONE Steam 1 RUN: 5aeab39d-407c-4aca-8746-940c2988722f